[Event "Titled Tuesday Blitz June 6 Early 2023"]
[White "Samadov, Read"]
[Black "Horvath, Dominik"]
[WhiteFideId "13417444"]
[BlackFideId "1642561"]
[WhiteElo "2355"]
[BlackElo "2407"]
[Result "1-0"]
[Round "7"]
[TimeControl "180+2"]
[Date "2023.06.06"]
[WhiteClock "0:00:06"]
[BlackClock "0:00:04"]
[Board "14"]

1. d4 {[%clk 0:03:00]}  Nf6 {[%clk 0:02:59]} 2. c4 {[%clk 0:03:01]}  e6 {[%clk 0:03:00]} 3. Nf3 {[%clk 0:03:01]}  d5 {[%clk 0:03:00]} 4. g3 {[%clk 0:03:02]}  dxc4 {[%clk 0:03:00]} 5. Bg2 {[%clk 0:03:02]}  Nbd7 {[%clk 0:02:55]} 6. O-O {[%clk 0:03:02]}  c6 {[%clk 0:02:53]} 7. a4 {[%clk 0:03:01]}  b6 {[%clk 0:02:54]} 8. Qc2 {[%clk 0:02:58]}  Bb7 {[%clk 0:02:53]} 9. Nfd2 {[%clk 0:02:45]}  Qc8 {[%clk 0:02:52]} 10. Nxc4 {[%clk 0:02:01]}  c5 {[%clk 0:02:52]} 11. Bxb7 {[%clk 0:01:57]}  Qxb7 {[%clk 0:02:53]} 12. dxc5 {[%clk 0:01:55]}  Bxc5 {[%clk 0:02:52]} 13. Be3 {[%clk 0:01:55]}  O-O {[%clk 0:02:51]} 14. Bxc5 {[%clk 0:01:52]}  Nxc5 {[%clk 0:02:51]} 15. Nc3 {[%clk 0:01:52]}  Rfd8 {[%clk 0:02:48]} 16. Rfd1 {[%clk 0:01:52]}  h6 {[%clk 0:02:47]} 17. b4 {[%clk 0:01:47]}  Nce4 {[%clk 0:02:47]} 18. Nxe4 {[%clk 0:01:44]}  Nxe4 {[%clk 0:02:47]} 19. f3 {[%clk 0:01:43]}  Nf6 {[%clk 0:02:45]} 20. e4 {[%clk 0:01:41]}  b5 {[%clk 0:02:31]} 21. Nd6 {[%clk 0:01:25]}  Qb6+ {[%clk 0:02:25]} 22. Qc5 {[%clk 0:01:25]}  bxa4 {[%clk 0:02:10]} 23. Rxa4 {[%clk 0:01:25]}  Nd7 {[%clk 0:00:53]} 24. Qxb6 {[%clk 0:01:24]}  Nxb6 {[%clk 0:00:52]} 25. Raa1 {[%clk 0:01:25]}  Rd7 {[%clk 0:00:42]} 26. e5 {[%clk 0:01:19]}  f6 {[%clk 0:00:37]} 27. exf6 {[%clk 0:01:10]}  Rad8 {[%clk 0:00:34]} 28. fxg7 {[%clk 0:01:05]}  Rxd6 {[%clk 0:00:33]} 29. Rxd6 {[%clk 0:01:03]}  Rxd6 {[%clk 0:00:34]} 30. Rxa7 {[%clk 0:01:03]}  Nd5 {[%clk 0:00:25]} 31. Rb7 {[%clk 0:00:57]}  Rb6 {[%clk 0:00:24]} 32. Rxb6 {[%clk 0:00:50]}  Nxb6 {[%clk 0:00:24]} 33. Kf2 {[%clk 0:00:50]}  Kxg7 {[%clk 0:00:24]} 34. f4 {[%clk 0:00:51]}  Kf6 {[%clk 0:00:22]} 35. Kf3 {[%clk 0:00:51]}  Kg6 {[%clk 0:00:19]} 36. g4 {[%clk 0:00:51]}  Kf6 {[%clk 0:00:19]} 37. h4 {[%clk 0:00:51]}  Nd5 {[%clk 0:00:20]} 38. b5 {[%clk 0:00:50]}  Nb6 {[%clk 0:00:20]} 39. Ke4 {[%clk 0:00:49]}  Nd5 {[%clk 0:00:19]} 40. g5+ {[%clk 0:00:49]}  hxg5 {[%clk 0:00:19]} 41. fxg5+ {[%clk 0:00:46]}  Kg6 {[%clk 0:00:17]} 42. Ke5 {[%clk 0:00:46]}  Kh5 {[%clk 0:00:17]} 43. Kd6 {[%clk 0:00:36]}  Kg6 {[%clk 0:00:17]} 44. Kc6 {[%clk 0:00:30]}  Kf5 {[%clk 0:00:15]} 45. b6 {[%clk 0:00:21]}  Nxb6 {[%clk 0:00:10]} 46. Kxb6 {[%clk 0:00:22]}  e5 {[%clk 0:00:11]} 47. Kc5 {[%clk 0:00:22]}  e4 {[%clk 0:00:12]} 48. Kd4 {[%clk 0:00:22]}  Kf4 {[%clk 0:00:12]} 49. g6 {[%clk 0:00:22]}  e3 {[%clk 0:00:13]} 50. g7 {[%clk 0:00:16]}  e2 {[%clk 0:00:13]} 51. g8=Q {[%clk 0:00:17]}  e1=Q {[%clk 0:00:14]} 52. Qg5+ {[%clk 0:00:16]}  Kf3 {[%clk 0:00:14]} 53. h5 {[%clk 0:00:12]}  Qd1+ {[%clk 0:00:13]} 54. Ke5 {[%clk 0:00:12]}  Qa1+ {[%clk 0:00:10]} 55. Kf5 {[%clk 0:00:12]}  Qa5+ {[%clk 0:00:10]} 56. Kg6 {[%clk 0:00:12]}  Qa8 {[%clk 0:00:08]} 57. Qf6+ {[%clk 0:00:11]}  Ke3 {[%clk 0:00:08]} 58. h6 {[%clk 0:00:10]}  Qg8+ {[%clk 0:00:07]} 59. Kf5 {[%clk 0:00:09]}  Qh7+ {[%clk 0:00:06]} 60. Kg5 {[%clk 0:00:08]}  Qg8+ {[%clk 0:00:06]} 61. Kh4 {[%clk 0:00:06]}  Qg2 {[%clk 0:00:04]} 62. Qg5+ {[%clk 0:00:06]} 1-0


[Site "https://www.chess.com"]

[Event "Titled Tuesday Blitz June 6 Early 2023"]
[White "Sielecki, Christof"]
[Black "Nguyen, Ngoc Truong Son"]
[WhiteFideId "4620437"]
[BlackFideId "12401110"]
[WhiteElo "2443"]
[BlackElo "2556"]
[Result "0-1"]
[Round "7"]
[TimeControl "180+2"]
[Date "2023.06.06"]
[WhiteClock "0:00:27"]
[BlackClock "0:00:08"]
[Board "15"]

1. e4 {[%clk 0:03:00]}  c5 {[%clk 0:02:59]} 2. Nf3 {[%clk 0:03:00]}  e6 {[%clk 0:02:59]} 3. c3 {[%clk 0:03:00]}  d5 {[%clk 0:02:58]} 4. exd5 {[%clk 0:03:00]}  Qxd5 {[%clk 0:02:57]} 5. d4 {[%clk 0:03:00]}  Nf6 {[%clk 0:02:56]} 6. Na3 {[%clk 0:02:59]}  a6 {[%clk 0:02:28]} 7. Nc4 {[%clk 0:02:58]}  Nbd7 {[%clk 0:02:27]} 8. a4 {[%clk 0:02:58]}  cxd4 {[%clk 0:02:20]} 9. Qxd4 {[%clk 0:02:52]}  Bc5 {[%clk 0:02:16]} 10. Qxd5 {[%clk 0:02:52]}  exd5 {[%clk 0:02:15]} 11. Ne3 {[%clk 0:02:39]}  O-O {[%clk 0:02:14]} 12. Be2 {[%clk 0:02:40]}  Re8 {[%clk 0:02:04]} 13. O-O {[%clk 0:02:39]}  Bxe3 {[%clk 0:02:04]} 14. Bxe3 {[%clk 0:02:32]}  Ng4 {[%clk 0:02:04]} 15. Rfd1 {[%clk 0:02:09]}  Nxe3 {[%clk 0:02:03]} 16. fxe3 {[%clk 0:02:10]}  Nf6 {[%clk 0:01:59]} 17. Nd4 {[%clk 0:01:42]}  Rxe3 {[%clk 0:01:55]} 18. Bf3 {[%clk 0:01:42]}  Re7 {[%clk 0:01:44]} 19. Re1 {[%clk 0:01:38]}  Be6 {[%clk 0:01:33]} 20. Rad1 {[%clk 0:01:29]}  Rae8 {[%clk 0:01:27]} 21. h3 {[%clk 0:01:28]}  h6 {[%clk 0:01:08]} 22. Kf2 {[%clk 0:01:28]}  Kf8 {[%clk 0:00:58]} 23. a5 {[%clk 0:01:25]}  Bd7 {[%clk 0:00:54]} 24. Rxe7 {[%clk 0:01:24]}  Rxe7 {[%clk 0:00:53]} 25. Rd2 {[%clk 0:00:56]}  Re5 {[%clk 0:00:38]} 26. Nc2 {[%clk 0:00:53]}  Ke7 {[%clk 0:00:36]} 27. Ne3 {[%clk 0:00:50]}  Bc6 {[%clk 0:00:31]} 28. g4 {[%clk 0:00:46]}  g6 {[%clk 0:00:21]} 29. Nc2 {[%clk 0:00:46]}  Ne4+ {[%clk 0:00:18]} 30. Bxe4 {[%clk 0:00:46]}  dxe4 {[%clk 0:00:19]} 31. Ke3 {[%clk 0:00:47]}  Rxa5 {[%clk 0:00:18]} 32. Nd4 {[%clk 0:00:47]}  Re5 {[%clk 0:00:17]} 33. Rf2 {[%clk 0:00:46]}  a5 {[%clk 0:00:15]} 34. h4 {[%clk 0:00:45]}  Bd7 {[%clk 0:00:10]} 35. Rf4 {[%clk 0:00:43]}  g5 {[%clk 0:00:10]} 36. hxg5 {[%clk 0:00:43]}  hxg5 {[%clk 0:00:11]} 37. Rf1 {[%clk 0:00:36]}  Bxg4 {[%clk 0:00:10]} 38. Rg1 {[%clk 0:00:35]}  f5 {[%clk 0:00:11]} 39. Kd2 {[%clk 0:00:30]}  Kf6 {[%clk 0:00:10]} 40. Rh1 {[%clk 0:00:29]}  e3+ {[%clk 0:00:09]} 41. Kd3 {[%clk 0:00:28]}  e2 {[%clk 0:00:08]} 42. Re1 {[%clk 0:00:27]}  f4 {[%clk 0:00:08]} 0-1


[Site "https://www.chess.com"]

[Event "Titled Tuesday Blitz June 6 Early 2023"]
[White "Sanal, Vahap"]
[Black "Sourath Biswas"]
[WhiteFideId "6300545"]
[BlackFideId "35091484"]
[WhiteElo "2606"]
[BlackElo "2171"]
[Result "1-0"]
[Round "7"]
[TimeControl "180+2"]
[Date "2023.06.06"]
[WhiteClock "0:02:26"]
[BlackClock "0:02:33"]
[Board "16"]

1. e4 {[%clk 0:03:00]}  c6 {[%clk 0:03:00]} 2. Nf3 {[%clk 0:02:56]}  d5 {[%clk 0:03:01]} 3. d3 {[%clk 0:02:57]}  e6 {[%clk 0:02:58]} 4. Nbd2 {[%clk 0:02:56]}  c5 {[%clk 0:02:58]} 5. g3 {[%clk 0:02:56]}  Nc6 {[%clk 0:02:59]} 6. Bg2 {[%clk 0:02:57]}  g6 {[%clk 0:02:59]} 7. O-O {[%clk 0:02:58]}  Bg7 {[%clk 0:02:59]} 8. c3 {[%clk 0:02:57]}  Nge7 {[%clk 0:03:00]} 9. Re1 {[%clk 0:02:57]}  O-O {[%clk 0:03:00]} 10. e5 {[%clk 0:02:52]}  d4 {[%clk 0:02:57]} 11. c4 {[%clk 0:02:47]}  Qc7 {[%clk 0:02:55]} 12. Qe2 {[%clk 0:02:47]}  Nb8 {[%clk 0:02:36]} 13. Ne4 {[%clk 0:02:46]}  b6 {[%clk 0:02:34]} 14. Nf6+ {[%clk 0:02:38]}  Kh8 {[%clk 0:02:34]} 15. Ng5 {[%clk 0:02:36]}  h6 {[%clk 0:02:33]} 16. Bxa8 {[%clk 0:02:30]}  hxg5 {[%clk 0:02:33]} 17. Bxg5 {[%clk 0:02:28]}  Nbc6 {[%clk 0:02:33]} 18. Qg4 {[%clk 0:02:26]} 1-0


[Site "https://www.chess.com"]

[Event "Titled Tuesday Blitz June 6 Early 2023"]
[White "Tang, Andrew"]
[Black "Abdilkhair, Abilmansur"]
[WhiteFideId "2059630"]
[BlackFideId "13716417"]
[WhiteElo "2600"]
[BlackElo "2210"]
[Result "1-0"]
[Round "7"]
[TimeControl "180+2"]
[Date "2023.06.06"]
[WhiteClock "0:00:03"]
[BlackClock "0:00:01"]
[Board "20"]

1. d4 {[%clk 0:03:00]}  d5 {[%clk 0:02:57]} 2. Bf4 {[%clk 0:03:00]}  Nf6 {[%clk 0:02:57]} 3. e3 {[%clk 0:02:58]}  Bf5 {[%clk 0:02:57]} 4. c4 {[%clk 0:02:58]}  e6 {[%clk 0:02:55]} 5. Nc3 {[%clk 0:02:58]}  c6 {[%clk 0:02:52]} 6. Qb3 {[%clk 0:02:58]}  Qc8 {[%clk 0:02:48]} 7. Nf3 {[%clk 0:02:57]}  h6 {[%clk 0:02:45]} 8. Rc1 {[%clk 0:02:54]}  a6 {[%clk 0:02:25]} 9. h3 {[%clk 0:01:42]}  Nbd7 {[%clk 0:02:22]} 10. Be2 {[%clk 0:01:42]}  Be7 {[%clk 0:02:21]} 11. O-O {[%clk 0:01:42]}  O-O {[%clk 0:02:21]} 12. Ne5 {[%clk 0:01:39]}  Bd8 {[%clk 0:02:09]} 13. Rfd1 {[%clk 0:01:18]}  dxc4 {[%clk 0:01:39]} 14. Nxc4 {[%clk 0:01:15]}  Bc7 {[%clk 0:01:37]} 15. Nd6 {[%clk 0:01:14]}  Bxd6 {[%clk 0:01:37]} 16. Bxd6 {[%clk 0:01:14]}  Rd8 {[%clk 0:01:37]} 17. Bf3 {[%clk 0:01:11]}  a5 {[%clk 0:00:54]} 18. e4 {[%clk 0:00:50]}  Bg6 {[%clk 0:00:53]} 19. e5 {[%clk 0:00:51]}  Nh7 {[%clk 0:00:53]} 20. d5 {[%clk 0:00:39]}  Ng5 {[%clk 0:00:44]} 21. Bg4 {[%clk 0:00:35]}  Re8 {[%clk 0:00:33]} 22. h4 {[%clk 0:00:29]}  h5 {[%clk 0:00:30]} 23. Be2 {[%clk 0:00:24]}  Nh7 {[%clk 0:00:20]} 24. dxc6 {[%clk 0:00:23]}  bxc6 {[%clk 0:00:20]} 25. Nb5 {[%clk 0:00:20]}  Rd8 {[%clk 0:00:11]} 26. Bf3 {[%clk 0:00:20]}  Nb8 {[%clk 0:00:10]} 27. Nd4 {[%clk 0:00:14]}  Ra6 {[%clk 0:00:10]} 28. Bxb8 {[%clk 0:00:08]}  Qxb8 {[%clk 0:00:09]} 29. Nxc6 {[%clk 0:00:08]}  Rxd1+ {[%clk 0:00:09]} 30. Rxd1 {[%clk 0:00:08]}  Qxb3 {[%clk 0:00:05]} 31. Rd8+ {[%clk 0:00:06]}  Nf8 {[%clk 0:00:05]} 32. axb3 {[%clk 0:00:05]}  f6 {[%clk 0:00:05]} 33. Ne7+ {[%clk 0:00:02]}  Kf7 {[%clk 0:00:06]} 34. Nxg6 {[%clk 0:00:02]}  Nxg6 {[%clk 0:00:04]} 35. Bxh5 {[%clk 0:00:02]}  fxe5 {[%clk 0:00:03]} 36. g4 {[%clk 0:00:03]}  Ra7 {[%clk 0:00:01]} 37. Rb8 {[%clk 0:00:02]}  Rc7 {[%clk 0:00:01]} 38. g5 {[%clk 0:00:03]} 1-0


[Site "https://www.chess.com"]

[Event "Titled Tuesday Blitz June 6 Early 2023"]
[White "Hambleton, Aman"]
[Black "Begmuratov, Alisher"]
[WhiteFideId "2606577"]
[BlackFideId "14203367"]
[WhiteElo "2511"]
[BlackElo "2387"]
[Result "1-0"]
[Round "7"]
[TimeControl "180+2"]
[Date "2023.06.06"]
[WhiteClock "0:00:02"]
[BlackClock "0:00:01"]
[Board "23"]

1. d4 {[%clk 0:03:00]}  d5 {[%clk 0:02:59]} 2. Bf4 {[%clk 0:03:01]}  e6 {[%clk 0:02:58]} 3. e3 {[%clk 0:03:01]}  Bd6 {[%clk 0:02:58]} 4. Nf3 {[%clk 0:02:59]}  Bxf4 {[%clk 0:02:56]} 5. exf4 {[%clk 0:03:00]}  Nf6 {[%clk 0:02:56]} 6. Nbd2 {[%clk 0:02:59]}  O-O {[%clk 0:02:53]} 7. Bd3 {[%clk 0:02:58]}  c5 {[%clk 0:02:52]} 8. dxc5 {[%clk 0:02:59]}  Qc7 {[%clk 0:02:51]} 9. g3 {[%clk 0:02:59]}  Qxc5 {[%clk 0:02:50]} 10. O-O {[%clk 0:02:59]}  Nc6 {[%clk 0:02:48]} 11. Nb3 {[%clk 0:02:56]}  Qb6 {[%clk 0:02:46]} 12. a3 {[%clk 0:02:51]}  Bd7 {[%clk 0:02:45]} 13. Rb1 {[%clk 0:02:47]}  Rac8 {[%clk 0:02:44]} 14. Nbd4 {[%clk 0:02:37]}  Nxd4 {[%clk 0:02:01]} 15. Nxd4 {[%clk 0:02:38]}  Rfe8 {[%clk 0:02:00]} 16. Re1 {[%clk 0:02:35]}  Qc7 {[%clk 0:01:41]} 17. Qd2 {[%clk 0:02:18]}  e5 {[%clk 0:01:23]} 18. fxe5 {[%clk 0:02:17]}  Rxe5 {[%clk 0:01:24]} 19. Rxe5 {[%clk 0:02:17]}  Qxe5 {[%clk 0:01:25]} 20. Re1 {[%clk 0:02:13]}  Qd6 {[%clk 0:01:06]} 21. Qb4 {[%clk 0:02:01]}  Qxb4 {[%clk 0:01:03]} 22. axb4 {[%clk 0:02:02]}  a6 {[%clk 0:01:03]} 23. f3 {[%clk 0:01:48]}  Kf8 {[%clk 0:01:02]} 24. Kf2 {[%clk 0:01:45]}  g6 {[%clk 0:01:02]} 25. g4 {[%clk 0:01:38]}  Re8 {[%clk 0:00:59]} 26. Rh1 {[%clk 0:01:11]}  Ke7 {[%clk 0:00:57]} 27. h4 {[%clk 0:01:07]}  Kd6 {[%clk 0:00:51]} 28. h5 {[%clk 0:00:53]}  Ke5 {[%clk 0:00:29]} 29. c3 {[%clk 0:00:45]}  Kd6 {[%clk 0:00:29]} 30. h6 {[%clk 0:00:17]}  g5 {[%clk 0:00:19]} 31. Rd1 {[%clk 0:00:08]}  Ng8 {[%clk 0:00:11]} 32. Rh1 {[%clk 0:00:04]}  Nf6 {[%clk 0:00:10]} 33. Rh2 {[%clk 0:00:02]}  Ra8 {[%clk 0:00:10]} 34. Rh1 {[%clk 0:00:02]}  a5 {[%clk 0:00:10]} 35. bxa5 {[%clk 0:00:02]}  Rxa5 {[%clk 0:00:10]} 36. Bb1 {[%clk 0:00:02]}  Ra1 {[%clk 0:00:09]} 37. Nb3 {[%clk 0:00:02]}  Ra8 {[%clk 0:00:09]} 38. Ke3 {[%clk 0:00:02]}  Re8+ {[%clk 0:00:08]} 39. Kd2 {[%clk 0:00:02]}  Bb5 {[%clk 0:00:07]} 40. Nd4 {[%clk 0:00:02]}  Bd7 {[%clk 0:00:07]} 41. Bd3 {[%clk 0:00:02]}  Ke5 {[%clk 0:00:07]} 42. Rf1 {[%clk 0:00:01]}  Kd6 {[%clk 0:00:06]} 43. Ra1 {[%clk 0:00:01]}  Ng8 {[%clk 0:00:06]} 44. Rh1 {[%clk 0:00:02]}  Nf6 {[%clk 0:00:05]} 45. Bc2 {[%clk 0:00:02]}  Ra8 {[%clk 0:00:04]} 46. Bf5 {[%clk 0:00:02]}  Re8 {[%clk 0:00:04]} 47. Bxd7 {[%clk 0:00:02]}  Kxd7 {[%clk 0:00:04]} 48. Ra1 {[%clk 0:00:02]}  Kc7 {[%clk 0:00:03]} 49. Ra5 {[%clk 0:00:02]}  Rd8 {[%clk 0:00:03]} 50. Rc5+ {[%clk 0:00:02]}  Kb6 {[%clk 0:00:03]} 51. Rb5+ {[%clk 0:00:03]}  Kc7 {[%clk 0:00:03]} 52. Ra5 {[%clk 0:00:02]}  Kb6 {[%clk 0:00:03]} 53. Ra3 {[%clk 0:00:02]}  Ng8 {[%clk 0:00:03]} 54. Nf5 {[%clk 0:00:02]}  Re8 {[%clk 0:00:02]} 55. Rb3+ {[%clk 0:00:02]}  Kc7 {[%clk 0:00:02]} 56. Ra3 {[%clk 0:00:02]}  Re6 {[%clk 0:00:01]} 57. Ra5 {[%clk 0:00:01]}  Nxh6 {[%clk 0:00:01]} 58. Nxh6 {[%clk 0:00:01]}  Rxh6 {[%clk 0:00:02]} 59. Rxd5 {[%clk 0:00:02]}  Rh2+ {[%clk 0:00:02]} 60. Kd3 {[%clk 0:00:02]}  Rxb2 {[%clk 0:00:02]} 61. Rxg5 {[%clk 0:00:02]}  Rb6 {[%clk 0:00:01]} 62. Rg7 {[%clk 0:00:02]}  Rd6+ {[%clk 0:00:01]} 63. Ke3 {[%clk 0:00:02]} 1-0


[Site "https://www.chess.com"]

[Event "Titled Tuesday Blitz June 6 Early 2023"]
[White "Amilal Munkhdalai"]
[Black "Kramnik, Vladimir"]
[WhiteFideId "4903250"]
[BlackFideId "4101588"]
[WhiteElo "2293"]
[BlackElo "2703"]
[Result "0-1"]
[Round "7"]
[TimeControl "180+2"]
[Date "2023.06.06"]
[WhiteClock "0:01:39"]
[BlackClock "0:00:59"]
[Board "27"]

1. e4 {[%clk 0:02:59]}  c5 {[%clk 0:02:58]} 2. Nf3 {[%clk 0:03:00]}  e6 {[%clk 0:02:59]} 3. d4 {[%clk 0:03:00]}  cxd4 {[%clk 0:02:59]} 4. Nxd4 {[%clk 0:03:01]}  Nf6 {[%clk 0:02:57]} 5. Bd3 {[%clk 0:02:56]}  Nc6 {[%clk 0:02:54]} 6. Nxc6 {[%clk 0:02:54]}  dxc6 {[%clk 0:02:51]} 7. O-O {[%clk 0:02:50]}  e5 {[%clk 0:02:51]} 8. Nd2 {[%clk 0:02:47]}  Be6 {[%clk 0:02:43]} 9. h3 {[%clk 0:02:40]}  Bc5 {[%clk 0:02:25]} 10. Qe2 {[%clk 0:02:39]}  O-O {[%clk 0:02:22]} 11. Bc4 {[%clk 0:02:39]}  Re8 {[%clk 0:02:12]} 12. Nf3 {[%clk 0:02:37]}  Bxc4 {[%clk 0:02:05]} 13. Qxc4 {[%clk 0:02:37]}  Qb6 {[%clk 0:02:04]} 14. c3 {[%clk 0:02:30]}  a5 {[%clk 0:02:03]} 15. Bg5 {[%clk 0:02:27]}  Nd7 {[%clk 0:01:53]} 16. Rad1 {[%clk 0:02:26]}  Nf8 {[%clk 0:01:52]} 17. b3 {[%clk 0:02:23]}  h6 {[%clk 0:01:44]} 18. Bc1 {[%clk 0:02:20]}  Ng6 {[%clk 0:01:20]} 19. a3 {[%clk 0:02:17]}  Rad8 {[%clk 0:01:17]} 20. Rxd8 {[%clk 0:02:11]}  Rxd8 {[%clk 0:01:17]} 21. b4 {[%clk 0:02:12]}  axb4 {[%clk 0:01:15]} 22. axb4 {[%clk 0:02:12]}  Bxf2+ {[%clk 0:01:14]} 23. Kh1 {[%clk 0:02:08]}  Rd7 {[%clk 0:01:08]} 24. Kh2 {[%clk 0:01:55]}  Be3 {[%clk 0:01:05]} 25. Bxe3 {[%clk 0:01:53]}  Qxe3 {[%clk 0:01:05]} 26. Re1 {[%clk 0:01:50]}  Qf4+ {[%clk 0:01:03]} 27. Kg1 {[%clk 0:01:49]}  Qg3 {[%clk 0:01:02]} 28. Qe2 {[%clk 0:01:44]}  Nf4 {[%clk 0:01:00]} 29. Qe3 {[%clk 0:01:39]}  Qxg2# {[%clk 0:00:59]} 0-1


[Site "https://www.chess.com"]

[Event "Titled Tuesday Blitz June 6 Early 2023"]
[White "Fus, Jakub"]
[Black "Sjugirov, Sanan"]
[WhiteFideId "1193023"]
[BlackFideId "4189302"]
[WhiteElo "2335"]
[BlackElo "2569"]
[Result "0-1"]
[Round "7"]
[TimeControl "180+2"]
[Date "2023.06.06"]
[WhiteClock "0:00:01"]
[BlackClock "0:00:49"]
[Board "28"]

1. d4 {[%clk 0:03:00]}  Nf6 {[%clk 0:03:00]} 2. c4 {[%clk 0:03:00]}  e6 {[%clk 0:03:00]} 3. Nf3 {[%clk 0:02:59]}  d5 {[%clk 0:03:00]} 4. g3 {[%clk 0:02:59]}  Bb4+ {[%clk 0:03:00]} 5. Bd2 {[%clk 0:02:59]}  Be7 {[%clk 0:03:00]} 6. Bg2 {[%clk 0:02:59]}  O-O {[%clk 0:03:01]} 7. O-O {[%clk 0:02:58]}  c6 {[%clk 0:03:01]} 8. Bc3 {[%clk 0:02:58]}  Ne4 {[%clk 0:02:47]} 9. Nbd2 {[%clk 0:02:52]}  f5 {[%clk 0:02:23]} 10. Qc2 {[%clk 0:02:39]}  Nd7 {[%clk 0:02:21]} 11. Rfd1 {[%clk 0:02:18]}  Bd6 {[%clk 0:02:16]} 12. e3 {[%clk 0:02:17]}  Qf6 {[%clk 0:02:12]} 13. b4 {[%clk 0:02:14]}  g5 {[%clk 0:02:08]} 14. Rac1 {[%clk 0:02:02]}  g4 {[%clk 0:02:08]} 15. Ne1 {[%clk 0:02:01]}  h5 {[%clk 0:02:05]} 16. Nd3 {[%clk 0:01:56]}  h4 {[%clk 0:02:05]} 17. Nxe4 {[%clk 0:01:51]}  fxe4 {[%clk 0:02:01]} 18. Nf4 {[%clk 0:01:52]}  Qf5 {[%clk 0:01:46]} 19. b5 {[%clk 0:01:35]}  Nf6 {[%clk 0:01:43]} 20. bxc6 {[%clk 0:01:18]}  bxc6 {[%clk 0:01:44]} 21. Rb1 {[%clk 0:01:13]}  Ba6 {[%clk 0:01:36]} 22. Qa4 {[%clk 0:01:00]}  Bxc4 {[%clk 0:01:32]} 23. Qxc6 {[%clk 0:00:59]}  Bxf4 {[%clk 0:01:30]} 24. exf4 {[%clk 0:01:00]}  h3 {[%clk 0:01:22]} 25. Bh1 {[%clk 0:00:33]}  Rac8 {[%clk 0:01:21]} 26. Qd6 {[%clk 0:00:31]}  e3 {[%clk 0:01:06]} 27. fxe3 {[%clk 0:00:16]}  Ne4 {[%clk 0:01:06]} 28. Qa3 {[%clk 0:00:11]}  Be2 {[%clk 0:00:56]} 29. Be1 {[%clk 0:00:04]}  Bxd1 {[%clk 0:00:55]} 30. Rxd1 {[%clk 0:00:05]}  Rc2 {[%clk 0:00:54]} 31. Qxa7 {[%clk 0:00:02]}  Nc3 {[%clk 0:00:51]} 32. Qd7 {[%clk 0:00:01]}  Nxd1 {[%clk 0:00:49]} 0-1


[Site "https://www.chess.com"]

[Event "Titled Tuesday Blitz June 6 Early 2023"]
[White "Talibov, Shiroghlan"]
[Black "Ashraf, Artin"]
[WhiteFideId "13429078"]
[BlackFideId "22514805"]
[WhiteElo "2274"]
[BlackElo "2224"]
[Result "1-0"]
[Round "7"]
[TimeControl "180+2"]
[Date "2023.06.06"]
[WhiteClock "0:00:09"]
[BlackClock "0:00:02"]
[Board "29"]

1. d4 {[%clk 0:03:00]}  d5 {[%clk 0:02:53]} 2. Nf3 {[%clk 0:03:00]}  Nf6 {[%clk 0:02:49]} 3. c4 {[%clk 0:02:59]}  e6 {[%clk 0:02:49]} 4. g3 {[%clk 0:02:57]}  Bb4+ {[%clk 0:02:46]} 5. Nbd2 {[%clk 0:02:56]}  O-O {[%clk 0:02:42]} 6. Bg2 {[%clk 0:02:52]}  b6 {[%clk 0:02:42]} 7. O-O {[%clk 0:02:49]}  Bb7 {[%clk 0:02:42]} 8. cxd5 {[%clk 0:02:46]}  exd5 {[%clk 0:02:41]} 9. a3 {[%clk 0:02:45]}  Bd6 {[%clk 0:02:31]} 10. b3 {[%clk 0:02:45]}  Re8 {[%clk 0:02:27]} 11. Bb2 {[%clk 0:02:43]}  Nbd7 {[%clk 0:02:28]} 12. Re1 {[%clk 0:02:42]}  a5 {[%clk 0:02:26]} 13. e3 {[%clk 0:02:40]}  Qe7 {[%clk 0:02:19]} 14. Nh4 {[%clk 0:02:27]}  Qe6 {[%clk 0:02:16]} 15. Rc1 {[%clk 0:02:22]}  Ne4 {[%clk 0:02:15]} 16. Nhf3 {[%clk 0:02:18]}  h6 {[%clk 0:02:06]} 17. Nxe4 {[%clk 0:02:16]}  dxe4 {[%clk 0:02:06]} 18. Nd2 {[%clk 0:02:16]}  Bd5 {[%clk 0:02:03]} 19. a4 {[%clk 0:02:06]}  c6 {[%clk 0:01:44]} 20. f3 {[%clk 0:01:33]}  f5 {[%clk 0:01:26]} 21. f4 {[%clk 0:01:30]}  b5 {[%clk 0:01:12]} 22. Bf1 {[%clk 0:01:26]}  Reb8 {[%clk 0:01:09]} 23. Bc3 {[%clk 0:01:24]}  Bb4 {[%clk 0:00:43]} 24. Qc2 {[%clk 0:01:20]}  Bd6 {[%clk 0:00:36]} 25. Ra1 {[%clk 0:01:18]}  b4 {[%clk 0:00:35]} 26. Bb2 {[%clk 0:01:17]}  g5 {[%clk 0:00:35]} 27. Nc4 {[%clk 0:01:14]}  gxf4 {[%clk 0:00:19]} 28. exf4 {[%clk 0:01:15]}  Rc8 {[%clk 0:00:14]} 29. Rac1 {[%clk 0:01:10]}  Nf6 {[%clk 0:00:12]} 30. Bh3 {[%clk 0:01:09]}  Ng4 {[%clk 0:00:10]} 31. Qe2 {[%clk 0:01:01]}  h5 {[%clk 0:00:10]} 32. Bg2 {[%clk 0:01:00]}  Kh7 {[%clk 0:00:09]} 33. Ne5 {[%clk 0:00:50]}  Bxb3 {[%clk 0:00:07]} 34. h3 {[%clk 0:00:44]}  Nf6 {[%clk 0:00:07]} 35. g4 {[%clk 0:00:45]}  hxg4 {[%clk 0:00:06]} 36. hxg4 {[%clk 0:00:45]}  Bd5 {[%clk 0:00:05]} 37. g5 {[%clk 0:00:45]}  Nd7 {[%clk 0:00:04]} 38. Nxd7 {[%clk 0:00:32]}  Qxd7 {[%clk 0:00:05]} 39. Qh5+ {[%clk 0:00:33]}  Kg8 {[%clk 0:00:05]} 40. Qg6+ {[%clk 0:00:29]}  Qg7 {[%clk 0:00:05]} 41. Qh5 {[%clk 0:00:23]}  Bxf4 {[%clk 0:00:04]} 42. g6 {[%clk 0:00:17]}  Bxc1 {[%clk 0:00:04]} 43. Bxc1 {[%clk 0:00:15]}  Rf8 {[%clk 0:00:02]} 44. Bh6 {[%clk 0:00:13]}  Qxd4+ {[%clk 0:00:02]} 45. Be3 {[%clk 0:00:12]}  Qh8 {[%clk 0:00:03]} 46. Qg5 {[%clk 0:00:11]}  Rae8 {[%clk 0:00:03]} 47. Rd1 {[%clk 0:00:10]}  f4 {[%clk 0:00:03]} 48. Bd4 {[%clk 0:00:10]}  f3 {[%clk 0:00:01]} 49. Bxh8 {[%clk 0:00:10]}  f2+ {[%clk 0:00:02]} 50. Kh2 {[%clk 0:00:09]}  e3 {[%clk 0:00:02]} 51. Bd4 {[%clk 0:00:08]}  Bxg2 {[%clk 0:00:02]} 52. Qh6 {[%clk 0:00:09]} 1-0


[Site "https://www.chess.com"]